{"text_format":"1","workbook":"xlsx","n_sheets":3,"sheets":["Sheet1","Sheet2","Sheet3"],"not_rendered":{"charts":0,"images":7,"macros":1,"external_links":0,"defined_names":0,"comments":0,"pivot_tables":0},"unopened":[],"bounds":{"document_bytes":16777216,"sheet_cells":100000,"rows_first":2000,"rows_last":500,"rows_between":2000,"halvings":0,"cell_chars":16384,"cell_head_chars":4096},"cells_cut":0,"cells_raw":0,"read":"whole","date_system":"1900"}

{"sheet":"Sheet1","index":0,"n_rows":30,"n_cols":9,"rows_kept":30,"cut":false,"hidden":false,"merged":[[1,0,1,1],[0,6,3,8],[5,8,6,8],[5,1,5,3],[5,4,6,4],[5,5,6,5],[5,6,6,6],[5,7,6,7]]}
[null,null,null,null,null,null,"1. Using this Tool you can send unlimited number of individual emails.\n2. You can input CC, BCC IDs and Attachment as well.\n3. Allthe emails sent SUCCESSFULLY will remain in white background color.\n4. All the emails which are FAILED, will be marked in RED Background Color.\n5. Number of Successfull and Failed Email Sent will be displayed at the end."]
["Select Types of Email"]
[]
[null,null,4,0]
[]
[null,"Email Ids   (Multiple Ids separated with \";\")",null,null,"Subject","Email Body\n(You can write your body in HTML or format it in Excel Cell)","Error Description","Select cell and click to attach. Select multiple files by pressing CTRL Key","#attachments"]
[null,"To","CC","BCC"]
[null,"vishwamitra01@gmail.com;vishwamitra02@gmail.com",null,null,"Mail formatted in Excel Cell","Dear Sir,\nThis line is written in RED Color Font. I want to BOLD and Italics this line in Black Color.\n\nRegards,\nVishwa",null,null,{"$f":"IF(LEN(H8)=0,0,LEN(H8)-LEN(SUBSTITUTE(H8,CHAR(10),\"\"))+1)","v":0}]
[null,"vishwamitra01@gmail.com",null,null,"Mail with HTML Code","<html><b>Hello Friends<br/> <i>This line is in italics</i><b>This line is in bold</b><br/>This is going to be in Next Line.<br/><b>Regards,<br/>Vishwa</html>",null,null,{"$f":"IF(LEN(H9)=0,0,LEN(H9)-LEN(SUBSTITUTE(H9,CHAR(10),\"\"))+1)","v":0}]
[null,"vishwamitra01@gmail.com",null,null,"Mixture of HTML code and Formatted in Cell","This is formatted in Cell. Below part is in HTML coding.\n<html><b>Hello Friends<br/> <i>This line is in italics</i><b>This line is in bold</b><br/>This is going to be in Next Line.<br/><b>Regards,<br/>Vishwa</html>",null,null,0]
[null,"vishwamitra.mishra@ahold.com;vishwamitra01@gmail.com",null,null,"Mail with Image and Text Written","Dear Reader,\nPlease find screen shot of my add in:\n<html><body><img src=\"D:\\Documents and Settings\\ihwa749\\Desktop\\logo.bmp\"></body></html><br/>Regards,\nVishwa",null,null,0]
[null,null,null,null,null,null,null,null,0]
[null,null,null,null,null,null,null,null,0]
[null,null,null,null,null,null,null,null,0]
[null,null,null,null,null,null,null,null,0]
[null,null,null,null,null,null,null,null,0]
[null,null,null,null,null,null,null,null,0]
[null,null,null,null,null,null,null,null,0]
[null,null,null,null,null,null,null,null,0]
[null,null,null,null,null,null,null,null,0]
[null,null,null,null,null,null,null,null,0]
[null,null,null,null,null,null,null,null,0]
[null,null,null,null,null,null,null,null,0]
[null,null,null,null,null,null,null,null,0]
[null,null,null,null,null,null,null,null,0]
[null,null,null,null,null,null,null,null,0]
[null,null,null,null,null,null,null,null,0]
[null,null,null,null,null,null,null,null,0]
[null,null,null,null,null,null,null,null,0]
[null,null,null,null,null,null,null,null,0]

{"sheet":"Sheet2","index":1,"n_rows":0,"n_cols":0,"rows_kept":0,"cut":false,"hidden":false,"merged":[]}

{"sheet":"Sheet3","index":2,"n_rows":0,"n_cols":0,"rows_kept":0,"cut":false,"hidden":false,"merged":[]}